fUST/lending_fUST_20240811
["ID","MTS","AMOUNT","RATE_DAILY","PERIOD"]
[334615410,1723348245199,-500.0,0.00020821,3]
[334615411,1723348245211,-990.01,0.00020821,3]
[334615412,1723348245224,-1212.36,0.00020821,3]
[334615413,1723348245235,-500.0,0.00020821,3]
[334615414,1723348245246,-599.78,0.00020821,3]
[334615415,1723348245258,-3141.48,0.00020821,3]
[334615416,1723348245269,-516.98296635,0.00020821,3]
[334615417,1723348245281,-500.0,0.00020821,3]
[334615418,1723348245294,-500.0,0.00020821,3]
[334615419,1723348245306,-502.98208088,0.00020821,3]
[334615420,1723348245317,-622.10430097,0.00020821,3]
[334615421,1723348245329,-1047.51,0.00020821,3]
[334615422,1723348245340,-500.0,0.00020821,3]
[334615423,1723348245352,-500.0,0.00020821,3]
[334615424,1723348245363,-500.0,0.00020821,3]
[334615425,1723348245374,-500.0,0.00020821,3]
[334615426,1723348245385,-1559.23,0.00020821,3]
[334615427,1723348245398,-500.0,0.00020821,3]
[334615428,1723348245411,-503.53902247,0.00020821,3]
[334615429,1723348245425,-14603.29,0.00020821,3]
[334615430,1723348245437,-657.93,0.00020821,3]
[334615431,1723348245450,-503.71395814,0.00020821,3]
[334615432,1723348245462,-980.98,0.00020821,3]
[334615433,1723348245475,-500.0,0.00020821,3]
[334615434,1723348245486,-500.0,0.00020821,3]
[334615435,1723348245498,-500.0,0.00020821,3]
[334615436,1723348245510,-1246.4,0.00020821,3]
[334615437,1723348245522,-1676.25,0.00020821,3]
[334615438,1723348245534,-1674.4,0.00020821,3]
[334615439,1723348245546,-516.64,0.00020821,3]
[334615440,1723348245557,-2542.52,0.00020821,3]
[334615441,1723348245568,-1177.11,0.00020821,3]
[334615442,1723348245579,-500.0,0.00020821,3]
[334615443,1723348245591,-6841.58,0.00020821,3]
[334615444,1723348245604,-811.07,0.00020821,3]
[334615445,1723348245616,-500.0,0.00020821,3]
[334615446,1723348245627,-500.0,0.00020821,3]
[334615447,1723348245639,-3633.83,0.00020821,3]
[334615448,1723348245652,-500.0,0.00020821,3]
[334615449,1723348245674,-500.0,0.00020821,3]
[334615450,1723348245685,-500.0,0.00020821,3]
[334615451,1723348245696,-1936.21,0.00020821,3]
[334615452,1723348245710,-2564.89,0.00020821,3]
[334615453,1723348245724,-500.0,0.00020821,3]
[334615454,1723348245739,-5985.97,0.00020821,3]
[334615455,1723348245750,-500.0,0.00020821,3]
[334615456,1723348245763,-500.0,0.00020821,3]
[334615457,1723348245776,-509.68280548,0.00020821,3]
[334615458,1723348245789,-500.0,0.00020821,3]
[334615459,1723348245801,-500.0,0.00020821,3]
[334615460,1723348245813,-630.01,0.00020821,3]
[334615461,1723348245827,-513.03049736,0.00020821,3]
[334615462,1723348245839,-500.0,0.00020821,3]
[334615463,1723348245851,-1821.23,0.00020821,3]
[334615464,1723348245864,-8739.13,0.00020821,3]
[334615465,1723348245876,-1015.62,0.00020821,3]
[334615466,1723348245887,-728.67510417,0.00020821,3]
[334615473,1723348248960,-3.21489583,0.00020821,3]
[334615474,1723348248970,-500.0,0.00020821,3]
[334615475,1723348248980,-2007.88429642,0.00020821,3]
[334615476,1723348249010,-1198.45173893,0.00020182,2]
[334615477,1723348249020,-1504.91570358,0.00020821,3]
[334615478,1723348249030,-500.0,0.00020821,3]
[334615479,1723348249040,-1339.84,0.00020821,3]
[334615480,1723348249051,-1964.87,0.00020821,3]
[334615481,1723348249062,-1808.38,0.00020821,3]
[334615482,1723348249072,-2552.21,0.00020821,3]
[334615483,1723348249083,-500.0,0.00020821,3]
[334615484,1723348249093,-500.0,0.00020821,3]
[334615485,1723348249104,-500.0,0.00020821,3]
[334615486,1723348249114,-500.0,0.00020821,3]
[334615487,1723348249125,-2118.22,0.00020821,3]
[334615488,1723348249136,-703.62,0.00020821,3]
[334615489,1723348249146,-500.0,0.00020821,3]
[334615490,1723348249155,-500.0,0.00020821,3]
[334615491,1723348249165,-1308.7,0.00020821,3]
[334615492,1723348249175,-500.0,0.00020821,3]
[334615493,1723348249185,-1285.63,0.00020821,3]
[334615494,1723348249196,-680.22,0.00020821,3]
[334615495,1723348249205,-515.16258444,0.00020821,3]
[334615496,1723348249215,-227.00680444,0.00020821,3]
[334615497,1723348249226,-200.0,0.00020873,2]
[334615498,1723348249237,-200.0,0.00020873,2]
[334615499,1723348249247,-2000.0,0.00020888,2]
[334615500,1723348249256,-2000.0,0.00020896,2]
[334615501,1723348249266,-2000.0,0.00020905,2]
[334615502,1723348249276,-823.0,0.00020906,2]
[334615503,1723348249286,-2000.0,0.00020914,2]
[334615504,1723348249295,-2000.0,0.00020914,2]
[334615505,1723348249304,-1174.88589201,0.00020914,2]
[334615506,1723348249314,-160.0,0.00020933,3]
[334615507,1723348249323,-5001.27377669,0.00020999,2]
[334615508,1723348249333,-906.38279602,0.00021,2]
[334615509,1723348249342,-258.23884666,0.00021,2]
[334615510,1723348249352,-2652.30830847,0.00021,2]
[334615511,1723348249362,-3741.69,0.00021,2]
[334615512,1723348249371,-2059.93745222,0.00021,2]
[334615513,1723348249381,-285.0,0.00021,2]
[334615514,1723348249391,-3000.0,0.00021,2]
[334615515,1723348249401,-3000.0,0.0002101,2]
[334615516,1723348249410,-1691.74695097,0.0002102,2]
[334615517,1723348250860,-500.0,0.00020821,3]
[334615518,1723348250871,-1308.25304903,0.0002102,2]
[334615519,1723348250883,-3000.0,0.0002103,2]
[334615520,1723348250893,-3000.0,0.0002104,2]
[334615521,1723348250904,-3000.0,0.0002105,2]
[334615522,1723348250916,-3000.0,0.0002106,2]
[334615523,1723348250928,-3000.0,0.0002107,2]
[334615524,1723348250938,-3000.0,0.0002108,2]
[334615525,1723348250947,-3000.0,0.0002109,2]
[334615526,1723348250957,-800.02,0.00021095,3]
[334615527,1723348250967,-500.0,0.00021095,3]
[334615528,1723348250978,-748.73,0.00021095,3]
[334615529,1723348250989,-500.0,0.00021095,3]
[334615530,1723348251002,-507.93786592,0.00021095,3]
[334615531,1723348251013,-500.0,0.00021095,3]
[334615532,1723348251024,-500.0,0.00021095,3]
[334615533,1723348251034,-500.0,0.00021095,3]
[334615534,1723348251044,-500.0,0.00021095,3]
[334615535,1723348251053,-500.0,0.00021095,3]
[334615536,1723348251062,-526.07419984,0.00021095,3]
[334615537,1723348251072,-515.73236206,0.00021095,3]
[334615538,1723348251082,-245.82497771,0.00021095,3]
[334615539,1723348251091,-500.0,0.00021095,3]
[334615540,1723348251101,-500.0,0.00021095,3]
[334615541,1723348251110,-500.0,0.00021095,3]
[334615542,1723348251119,-500.0,0.00021095,3]
[334615543,1723348251129,-500.0,0.00021095,3]
[334615544,1723348251138,-1261.21,0.00021095,3]
[334615545,1723348251147,-585.71,0.00021095,3]
[334615546,1723348251156,-500.0,0.00021095,3]
[334615547,1723348251173,-500.0,0.00021095,3]
[334615548,1723348251182,-500.0,0.00021095,3]
[334615549,1723348251192,-500.0,0.00021095,3]
[334615550,1723348251202,-612.49,0.00021095,3]
[334615551,1723348251212,-909.23,0.00021095,3]
[334615552,1723348251222,-500.0,0.00021095,3]
[334615553,1723348251232,-517.29212193,0.00021095,3]
[334615554,1723348251242,-529.44998527,0.00021095,3]
[334615555,1723348251252,-484.89001583,0.00021095,3]
[334615556,1723348251465,-15.10998417,0.00021095,3]
[334615557,1723348251475,-259.4149161,0.00021095,3]
[334615558,1723348251486,-500.0,0.00021095,3]
[334615559,1723348251496,-500.0,0.00021095,3]
[334615560,1723348251506,-500.0,0.00021095,3]
[334615561,1723348251516,-538.23248162,0.00021095,3]
[334615562,1723348251526,-500.0,0.00021095,3]
[334615563,1723348251536,-500.0,0.00021095,3]
[334615564,1723348251545,-500.0,0.00021095,3]
[334615565,1723348251556,-121.53208165,0.00021095,3]
[334615566,1723348251930,-664.6584772,0.00016969,2]
[334615567,1723348251940,-404.08727484,0.00018773,2]
[334615568,1723348251950,-500.75424796,0.0002072,2]
[334615569,1723348252104,273.37336231,9.9e-05,2]
[334615571,1723348288168,181.0623349,0.00012,2]
[334615572,1723348289322,2850.80314621,0.00015,2]
[334615573,1723348289742,154.79103211,0.00012,2]
[334615574,1723348292691,1383.74801699,0.00012,2]
[334615575,1723348292886,188.34866886,0.00012,2]
[334615576,1723348293808,1992.83567899,0.00012,2]
[334615577,1723348293911,194.69086779,0.00013699,2]
[334615578,1723348296359,686.8095988,0.00013,2]
[334615579,1723348297629,9114.71769999,0.00012,2]
[334615580,1723348297829,154.79103211,0.00012,2]
[334615581,1723348299064,154.76012181,0.00012,2]
[334615582,1723348299117,287.94781809,0.00012,2]
[334615583,1723348299154,20771.62269481,0.00012,2]
[334615584,1723348299739,1723.9730326,0.00012,2]
[334615585,1723348300186,534.23635652,0.00012,2]
[334615586,1723348301901,278.36893847,0.00012,2]
[334615587,1723348302025,155.09824518,0.00012,2]
[334615588,1723348302158,160.30213643,0.00012,2]
[334615589,1723348302413,154.89245265,0.00012,2]
[334615590,1723348302756,2140.4177363,0.00012,2]
[334615591,1723348302936,183.26546668,0.00012,2]
[334615592,1723348303230,321.042646,0.00012,2]
[334615593,1723348304417,155.48334812,0.00012,2]
[334615594,1723348304822,155.00910899,0.00012,2]
[334615595,1723348305323,342.24911954,0.00012,2]
[334615596,1723348305796,209.98990113,0.00012,2]
[334615597,1723348306189,8834.48131506,0.00012,2]
[334615598,1723348306230,154.87614305,0.00012,2]
[334615599,1723348307454,155.05170291,0.00012,2]
[334615600,1723348309003,205.8260041,0.00012,2]
[334615601,1723348309317,201.64749152,0.00012,2]
[334615602,1723348309449,209.31521257,0.00012,2]
[334615603,1723348310329,154.79103211,0.00012,2]
[334615605,1723348310626,532.54272678,0.00012,2]
[334615606,1723348310741,154.79103211,0.00012,2]
[334615607,1723348310794,157.46729477,0.00012,2]
[334615608,1723348310955,154.79103211,0.00012,2]
[334615609,1723348311844,664.6584772,0.00012,2]
[334615610,1723348312240,154.79103211,0.00012,2]
[334615611,1723348312413,154.89911116,0.00015,2]
[334615612,1723348312455,471.24155498,0.00012,2]
[334615613,1723348312547,154.79103211,0.00012,2]
[334615614,1723348312982,1764.53474525,0.00012,2]
[334615615,1723348313320,253.58130554,0.00012,2]
[334615616,1723348313534,833.90450018,0.00015,2]
[334615617,1723348315536,154.76012181,0.00012,2]
[334615622,1723348317881,1020.54417991,0.00012,2]
[334615624,1723348325965,154.79103211,0.00012,2]
[334615625,1723348326824,664.6584772,0.00012,2]
[334615626,1723348330457,154.76012181,0.00012,2]
[334615627,1723348336306,686.44921884,0.00013,2]
[334615628,1723348336572,273.37336231,9.9e-05,2]
[334615629,1723348343202,16288.67543148,9.9e-05,2]
[334615630,1723348346277,2850.80314621,0.00015,2]
[334615631,1723348346866,319.90937201,0.00012,2]
[334615632,1723348348743,1109.52360725,0.00015,2]
[334615633,1723348348775,1438.04418429,0.00014545,2]
[334615634,1723348349495,543.3913977,0.00014545,2]
[334615635,1723348349944,205.31051458,0.00014545,2]
[334615636,1723348350965,157.05367525,0.00014545,2]
[334615637,1723348352566,273.37336231,9.9e-05,2]
[334615638,1723348353508,14250.1835598,0.00014545,2]
[334615639,1723348353821,403.97923523,0.00012,2]
[334615640,1723348355233,154.79103211,0.00014545,2]
[334615641,1723348355321,342.34390176,0.00012,2]
[334615642,1723348356156,160.30213643,0.00012,2]
[334615643,1723348356908,194.69086779,0.00013699,2]
[334615644,1723348357020,180.63105164,0.00012,2]
[334615645,1723348357347,201.53786634,0.00012,2]
[334615646,1723348359801,1992.83567899,0.00014545,2]
[334615647,1723348363618,3160.81776747,0.00015,2]
[334615648,1723348364018,188.34866886,0.00014545,2]
[334615649,1723348364526,297.68163968,0.00014545,2]
[334615650,1723348364716,154.79103211,0.00014545,2]
[334615651,1723348367822,1019.86171641,0.00014545,2]
[334615652,1723348368255,273.37336231,9.9e-05,2]
[334615653,1723348369252,913.17015926,0.00015,2]
[334615654,1723348370460,155.11402214,0.00014545,2]
[334615655,1723348371401,314.18001922,0.00014545,2]
[334615656,1723348372427,470.98845824,0.00014545,2]
[334615657,1723348372825,154.79103211,0.00014545,2]
[334615658,1723348373501,208.15948291,0.00015,2]
[334615659,1723348374199,154.79102903,0.00014545,2]
[334615660,1723348382762,1133.0,0.00027,120]
[334615661,1723348382942,183.64123247,0.00014545,2]
[334615662,1723348401735,209.98990113,0.00014545,2]
[334615663,1723348410373,249.79,0.00010959,2]
[334615665,1723348473288,1669.45709618,0.00010959,2]
[334615666,1723348475125,405.08523322,0.00010959,2]
[334615667,1723348483797,154.76012181,0.00013283,2]
[334615668,1723348586128,359.07985261,0.00013283,2]
[334615669,1723348603491,3000.0,0.00014486,2]
[334615670,1723348614567,609.149239,0.00014486,2]
[334615671,1723348627064,743.6077549,0.00014503,2]
[334615674,1723348643300,803.188587,0.00014503,2]
[334615676,1723348794769,24900.0,0.00014471,2]
[334615677,1723348797642,2721.0,0.00027,120]
[334615678,1723348821235,16297.03267387,0.00014503,2]
[334615679,1723348886486,3720.3483353,0.00014603,2]
[334615680,1723348943240,10710.69247055,0.00014503,2]
[334615681,1723348990265,164.69478,0.00014247,2]
[334615682,1723349070725,189.91186464,9.999e-05,2]
[334615683,1723349078239,250.0,0.00014635,2]
[334615684,1723349078686,250.0,0.00014675,2]
[334615685,1723349078851,250.0,0.00014715,2]
[334615686,1723349078964,250.0,0.00014755,2]
[334615687,1723349079075,250.0,0.00014795,2]
[334615688,1723349079323,250.0,0.00014835,2]
[334615689,1723349079432,250.0,0.00014875,2]
[334615690,1723349079629,250.0,0.00014916,2]
[334615691,1723349079851,250.0,0.00014956,2]
[334615692,1723349080110,250.0,0.00014996,2]
[334615693,1723349105466,846.23163308,9.999e-05,2]
[334615694,1723349118775,156.96173825,9.999e-05,2]
[334615695,1723349119991,154.79103211,9.999e-05,2]
[334615696,1723349126594,520.09681302,9.999e-05,2]
[334615698,1723349142607,401.594293,0.00014372,2]
[334615699,1723349162543,694.71379029,9.999e-05,2]
[334615700,1723349164140,245.00380538,9.999e-05,2]
[334615701,1723349181445,156.73959383,9.999e-05,2]
[334615702,1723349187108,154.9367196,9.999e-05,2]
[334615703,1723349188108,154.77557542,9.999e-05,2]
[334615704,1723349188146,154.77557542,0.00014999,2]
[334615705,1723349189982,174.67965412,9.999e-05,2]
[334615706,1723349190142,154.77557542,9.999e-05,2]
[334615707,1723349190566,154.77557542,9.999e-05,2]
[334615708,1723349202126,1092.45305445,0.00014999,2]
[334615709,1723349202354,534.13,0.00027,120]
[334615710,1723349205557,154.77557542,9.999e-05,2]
[334615711,1723349206568,196.63865106,9.999e-05,2]
[334615712,1723349217580,196.63865106,9.999e-05,2]
[334615713,1723349227443,156.73959383,0.0001212,2]
[334615714,1723349228393,174.67965412,0.0001212,2]
[334615715,1723349235588,154.96588346,0.0001212,2]
[334615716,1723349239219,156.84792364,0.0001212,2]
[334615717,1723349239586,195.039736,0.00014418,2]
[334615718,1723349239803,195.039736,0.00014454,2]
[334615719,1723349239837,602.94564093,0.0001212,2]
[334615720,1723349240134,-250.0,0.00015036,2]
[334615721,1723349240161,-250.0,0.00015076,2]
[334615722,1723349240185,-250.0,0.00015116,2]
[334615723,1723349240210,-250.0,0.00015156,2]
[334615724,1723349240235,-250.0,0.00015197,2]
[334615725,1723349240259,-250.0,0.00015237,2]
[334615726,1723349240281,-250.0,0.00015277,2]
[334615727,1723349240303,-250.0,0.00015317,2]
[334615728,1723349240325,-250.0,0.00015357,2]
[334615729,1723349240347,-250.0,0.00015397,2]
[334615730,1723349240369,-309.99916935,0.00015549,2]
[334615731,1723349240392,-3395.16064138,0.00015595,2]
[334615732,1723349240417,-300.0,0.00015607,2]
[334615733,1723349240440,-300.0,0.00015607,2]
[334615734,1723349240463,-998.97065318,0.0001565,2]
[334615735,1723349240486,-500.0,0.00015695,2]
[334615736,1723349240508,-54.99548562,0.00015695,2]
[334615737,1723349240558,195.039736,0.0001449,2]
[334615738,1723349241119,-445.00451438,0.00015695,2]
[334615739,1723349241140,-28.40445965,0.00015695,2]
[334615740,1723349242630,201.84435132,0.0001212,2]
[334615741,1723349244056,154.77557542,0.0001212,2]
[334615742,1723349244751,1092.45305445,0.00014,2]
[334615743,1723349246187,301.21591624,0.0001212,2]
[334615744,1723349246657,833.78545195,0.00015,2]
[334615745,1723349246689,300.58583733,0.000149,2]
[334615746,1723349247093,-471.59554035,0.00015695,2]
[334615747,1723349247114,-500.0,0.00015695,2]
[334615748,1723349247136,-500.0,0.00015695,2]
[334615749,1723349247158,-500.0,0.00015695,2]
[334615750,1723349247179,-500.0,0.00015695,2]
[334615751,1723349247199,-500.0,0.00015695,2]
[334615752,1723349247219,-500.0,0.00015695,2]
[334615753,1723349247239,-500.0,0.00015695,2]
[334615754,1723349247261,-500.0,0.00015695,2]
[334615755,1723349247282,-500.0,0.00015695,2]
[334615756,1723349247302,-500.0,0.00015695,2]
[334615757,1723349247323,-586.15255922,0.00015695,2]
[334615758,1723349247344,-500.0,0.00015695,2]
[334615759,1723349247364,-500.0,0.00015695,2]
[334615760,1723349247384,-500.0,0.00015695,2]
[334615761,1723349247405,-500.0,0.00015695,2]
[334615762,1723349247425,-500.0,0.00015695,2]
[334615763,1723349247446,-500.0,0.00015695,2]
[334615764,1723349247467,-500.0,0.00015695,2]
[334615765,1723349247488,-500.0,0.00015695,2]
[334615766,1723349247511,-500.0,0.00015695,2]
[334615767,1723349247531,-500.0,0.00015695,2]
[334615768,1723349247552,-500.0,0.00015695,2]
[334615769,1723349247572,-500.0,0.00015695,2]
[334615770,1723349247594,-500.0,0.00015695,2]
[334615771,1723349247614,-500.0,0.00015695,2]
[334615772,1723349247635,-500.0,0.00015695,2]
[334615773,1723349247656,-500.0,0.00015695,2]
[334615774,1723349247676,-364.07235156,0.00015695,2]
[334615775,1723349247697,-500.0,0.00015695,2]
[334615776,1723349247717,-500.0,0.00015695,2]
[334615777,1723349247738,-500.0,0.00015695,2]
[334615778,1723349247762,-500.0,0.00015695,2]
[334615779,1723349247784,-500.0,0.00015695,2]
[334615780,1723349247808,-500.0,0.00015695,2]
[334615781,1723349247830,-500.0,0.00015695,2]
[334615782,1723349247852,-500.0,0.00015695,2]
[334615783,1723349247874,-500.0,0.00015695,2]
[334615784,1723349247896,-500.0,0.00015695,2]
[334615785,1723349247917,-500.0,0.00015695,2]
[334615786,1723349247938,-500.0,0.00015695,2]
[334615787,1723349248157,-500.0,0.00015695,2]
[334615788,1723349248180,-500.0,0.00015695,2]
[334615789,1723349248200,-500.0,0.00015695,2]
[334615790,1723349248222,-500.0,0.00015695,2]
[334615791,1723349248244,-248.143943,0.00015695,2]
[334615792,1723349248265,-500.0,0.00015695,2]
[334615793,1723349248286,-500.0,0.00015695,2]
[334615794,1723349248307,-500.0,0.00015695,2]
[334615795,1723349248328,-500.0,0.00015695,2]
[334615796,1723349248353,-500.0,0.00015695,2]
[334615797,1723349248373,-518.79999615,0.00015695,2]
[334615798,1723349248395,-500.0,0.00015695,2]
[334615799,1723349248415,-236.81916369,0.00015695,2]
[334615800,1723349248436,-500.0,0.00015695,2]
[334615801,1723349248456,-500.0,0.00015695,2]
[334615802,1723349248477,-500.0,0.00015695,2]
[334615803,1723349248497,-500.0,0.00015695,2]
[334615804,1723349248517,-500.0,0.00015695,2]
[334615805,1723349248537,-500.0,0.00015695,2]
[334615806,1723349248558,-500.0,0.00015695,2]
[334615807,1723349248578,-500.0,0.00015695,2]
[334615808,1723349248599,-500.0,0.00015695,2]
[334615809,1723349248619,-500.0,0.00015695,2]
[334615810,1723349248640,-500.0,0.00015695,2]
[334615811,1723349248661,-500.0,0.00015695,2]
[334615812,1723349248682,-628.48502178,0.00015695,2]
[334615813,1723349248703,-500.0,0.00015695,2]
[334615814,1723349248724,-500.0,0.00015695,2]
[334615815,1723349248745,-500.0,0.00015695,2]
[334615816,1723349248764,-500.0,0.00015695,2]
[334615817,1723349248784,-500.0,0.00015695,2]
[334615818,1723349248805,-500.0,0.00015695,2]
[334615819,1723349248829,-500.0,0.00015695,2]
[334615820,1723349248851,-500.0,0.00015695,2]
[334615821,1723349248874,-500.0,0.00015695,2]
[334615822,1723349248895,-500.0,0.00015695,2]
[334615823,1723349248917,-500.0,0.00015695,2]
[334615824,1723349248938,-500.0,0.00015695,2]
[334615825,1723349248959,-500.0,0.00015695,2]
[334615826,1723349248984,-500.0,0.00015695,2]
[334615827,1723349249008,-500.0,0.00015695,2]
[334615828,1723349249030,-500.0,0.00015695,2]
[334615829,1723349249051,-500.0,0.00015695,2]
[334615830,1723349249071,-500.0,0.00015695,2]
[334615831,1723349249096,-500.0,0.00015695,2]
[334615832,1723349249118,-307.7436578,0.00015695,2]
[334615833,1723349249138,-500.0,0.00015695,2]
[334615834,1723349249160,-626.97345948,0.00015695,2]
[334615835,1723349249181,-994.42517341,0.00015695,2]
[334615836,1723349249202,-994.42517341,0.00015695,2]
[334615837,1723349249222,-994.42517341,0.00015695,2]
[334615838,1723349249244,-994.42517341,0.00015695,2]
[334615839,1723349249264,-994.42517341,0.00015695,2]
[334615840,1723349249285,-994.42517341,0.00015695,2]
[334615841,1723349249306,-994.42517341,0.00015695,2]
[334615842,1723349249326,-994.42517341,0.00015695,2]
[334615843,1723349249347,-994.42517341,0.00015695,2]
[334615844,1723349249367,-500.0,0.00015695,2]
[334615845,1723349249387,-994.42517341,0.00015695,2]
[334615846,1723349249408,-500.0,0.00015695,2]
[334615847,1723349249430,-994.42517341,0.00015695,2]
[334615848,1723349249452,-994.42517341,0.00015695,2]
[334615849,1723349249473,-994.42517341,0.00015695,2]
[334615850,1723349249494,-994.42517341,0.00015695,2]
[334615851,1723349249527,-994.42517341,0.00015695,2]
[334615852,1723349249549,-994.42517341,0.00015695,2]
[334615853,1723349249570,-994.42517341,0.00015695,2]
[334615854,1723349249592,-994.42517341,0.00015695,2]
[334615855,1723349249614,-994.42517341,0.00015695,2]
[334615856,1723349249636,-994.42517341,0.00015695,2]
[334615857,1723349249659,-994.42517341,0.00015695,2]
[334615858,1723349249680,-994.42517341,0.00015695,2]
[334615859,1723349249703,-994.42517341,0.00015695,2]
[334615860,1723349249725,-994.42517341,0.00015695,2]
[334615861,1723349249748,-994.42517341,0.00015695,2]
[334615862,1723349249770,-994.42517341,0.00015695,2]
[334615863,1723349249792,-994.42517341,0.00015695,2]
[334615864,1723349249814,-994.42517341,0.00015695,2]
[334615865,1723349249836,-994.42517341,0.00015695,2]
[334615866,1723349249870,-994.42517341,0.00015695,2]
[334615867,1723349249953,-994.42517341,0.00015695,2]
[334615868,1723349250078,-994.42517341,0.00015695,2]
[334615869,1723349250120,-994.42517341,0.00015695,2]
[334615870,1723349250165,-994.42517341,0.00015695,2]
[334615871,1723349250208,-994.42517341,0.00015695,2]
[334615872,1723349250252,-994.42517341,0.00015695,2]
[334615873,1723349250321,-994.42517341,0.00015695,2]
[334615874,1723349250385,-994.42517341,0.00015695,2]
[334615875,1723349250449,-994.42517341,0.00015695,2]
[334615876,1723349250495,-994.42517341,0.00015695,2]
[334615877,1723349250523,-994.42517341,0.00015695,2]
[334615878,1723349250546,-994.42517341,0.00015695,2]
[334615879,1723349250570,-994.42517341,0.00015695,2]
[334615880,1723349250593,-994.42517341,0.00015695,2]
[334615881,1723349250616,-994.42517341,0.00015695,2]
[334615882,1723349250637,-994.42517341,0.00015695,2]
[334615883,1723349250661,-994.42517341,0.00015695,2]
[334615884,1723349250682,-994.42517341,0.00015695,2]
[334615885,1723349250705,-994.42517341,0.00015695,2]
[334615886,1723349250729,-994.42517341,0.00015695,2]
[334615887,1723349250753,-994.42517341,0.00015695,2]
[334615888,1723349250776,-994.42517341,0.00015695,2]
[334615889,1723349250798,-500.0,0.00015695,2]
[334615890,1723349250822,-494.42517336,0.00015695,2]
[334615891,1723349250843,-382.48213769,0.00015696,2]
[334615892,1723349250866,-500.0,0.00015696,2]
[334615893,1723349250888,-500.0,0.00015696,2]
[334615894,1723349250910,-500.0,0.00015696,2]
[334615895,1723349250932,-500.0,0.00015696,2]
[334615896,1723349250954,-306.94901099,0.00015696,2]
[334615897,1723349250976,-500.0,0.00015696,2]
[334615898,1723349250997,-500.0,0.00015696,2]
[334615899,1723349251018,-500.0,0.00015696,2]
[334615900,1723349251041,-500.0,0.00015696,2]
[334615901,1723349251063,-500.0,0.00015696,2]
[334615902,1723349251089,-500.0,0.00015696,2]
[334615903,1723349251110,-500.0,0.00015696,2]
[334615904,1723349251135,-500.0,0.00015696,2]
[334615905,1723349251158,-500.0,0.00015696,2]
[334615906,1723349251180,-500.0,0.00015696,2]
[334615907,1723349251201,-458.04954374,0.00015696,2]
[334615908,1723349251223,-500.0,0.00015696,2]
[334615909,1723349251246,-500.0,0.00015696,2]
[334615910,1723349251268,-500.0,0.00015696,2]
[334615911,1723349251289,-500.0,0.00015696,2]
[334615912,1723349251311,-500.0,0.00015696,2]
[334615913,1723349251333,-652.08758758,0.00015696,2]
[334615914,1723349251354,-652.08758758,0.00015696,2]
[334615915,1723349251376,-652.08758758,0.00015696,2]
[334615916,1723349251397,-652.08758758,0.00015696,2]
[334615917,1723349251418,-652.08758758,0.00015696,2]
[334615918,1723349251440,-652.08758758,0.00015696,2]
[334615919,1723349251461,-652.08758758,0.00015696,2]
[334615920,1723349251482,-652.08758758,0.00015696,2]
[334615921,1723349251503,-652.08758758,0.00015696,2]
[334615922,1723349251525,-850.09627158,0.00015697,2]
[334615923,1723349251887,801.02611963,0.0001212,2]
[334615924,1723349264393,174.67965412,0.0001212,2]
[334615925,1723349264784,154.79103211,0.00014,2]
[334615926,1723349267428,156.61350746,0.0001212,2]
[334615927,1723349273272,-19905.97150618,0.00015599,2]